bitfinex-derivatives/quotes_ETHF0:USTF0_20240830
["timestamp","ask_amount","ask_price","bid_price","bid_amount"]
[1724997957144,0.39789,2513.1,2513.0,3.44]
[1724997960842,0.39791,2513.0,2512.9,3.2078]
[1724997961045,0.39795,2512.7,2512.6,3.2078]
[1724997961443,4.37795,2512.7,2512.6,3.2078]
[1724997962037,4.74925,2512.7,2512.6,3.2078]
[1724997962344,0.3723,2512.8,2512.6,3.2078]
[1724997962537,0.3723,2512.8,2512.7,3.44]
[1724997962843,4.174,2513.1,2512.9,0.39792]
[1724997963043,4.174,2513.1,2513.0,3.44]
[1724997963446,4.174,2513.1,2512.6,6.6478]
[1724997963746,0.39794,2512.8,2512.6,6.6478]
[1724997964050,0.3679,2512.7,2512.6,6.6478]
[1724997964342,0.77551,2513.0,2512.6,7.04576]
[1724997964557,0.77551,2513.0,2512.6,7.04577]
[1724997964852,0.3776,2513.0,2512.7,0.39795]
[1724997965148,0.77551,2513.0,2512.6,7.04576]
[1724997965450,0.3776,2513.0,2512.6,7.04576]
[1724997965641,0.3776,2513.0,2512.8,3.44]
[1724997966951,4.174,2513.1,2512.8,3.83793]
[1724997967250,3.2078,2513.2,2512.8,3.83793]
[1724997967644,0.75787,2513.3,2512.9,3.2078]
[1724997968155,0.36,2513.3,2512.9,3.60572]
[1724997969545,0.36,2513.3,2513.0,0.3979]
[1724997970350,0.36,2513.3,2513.0,0.59923186]
[1724997970556,7.3818,2513.7,2513.0,7.62053186]
[1724997970738,0.7597,2513.6,2513.1,0.39788]
[1724997970940,0.7597,2513.6,2513.0,4.03923186]
[1724997971140,0.39783,2513.5,2513.1,0.39788]
[1724997971454,4.174,2514.0,2513.5,0.39783]
[1724997971648,0.3785,2513.9,2513.6,0.39781]
[1724997972244,0.3785,2513.9,2513.7,0.39779]
[1724997972445,0.3785,2513.9,2513.8,3.44]
[1724997973154,0.3812,2514.0,2513.8,3.83778]
[1724997973948,0.3812,2514.0,2513.8,3.44]
[1724997974257,4.174,2514.2,2513.8,3.44]
[1724997974645,4.57172,2514.2,2513.8,3.44]
[1724997974940,0.39773,2514.1,2513.8,6.6478]
[1724997975144,0.39776,2514.0,2513.5,7.04562]
[1724997975341,0.3539,2513.9,2513.5,7.04562]
[1724997975543,4.5546,2514.2,2513.8,7.04557]
[1724997976261,4.95232,2514.2,2513.8,7.04557]
[1724997976465,0.3806,2514.2,2513.9,0.39776]
[1724997976958,0.3806,2514.2,2513.8,7.05154526]
[1724997977648,0.3806,2514.2,2513.9,0.39776]
[1724997978153,0.3806,2514.2,2513.9,0.75836]
[1724997978350,0.3806,2514.2,2514.1,0.39773]
[1724997978549,0.3806,2514.2,2514.0,3.83774]
[1724997979346,0.3806,2514.2,2514.1,3.2078]
[1724997979745,0.355,2514.3,2514.1,3.60553]
[1724997979947,0.355,2514.3,2514.1,3.2078]
[1724997980447,0.389,2514.4,2514.2,3.83772]
[1724997981047,0.389,2514.4,2514.2,3.44]
[1724997981448,0.78345,2514.7,2514.3,0.3977]
[1724997981748,1.15055,2514.7,2514.3,0.3977]
[1724997981954,1.15055,2514.7,2514.2,3.83771]
[1724997982156,0.39766,2514.6,2514.2,3.44]
[1724997982456,0.39766,2514.6,2514.2,3.83771]
[1724997982649,0.39767,2514.5,2514.2,3.44]
[1724997983163,0.39767,2514.6,2514.2,3.83771]
[1724997983551,0.3977,2514.4,2514.2,3.44]
[1724997983747,0.7542,2514.3,2514.2,3.44]
[1724997983953,0.7542,2514.3,2514.1,3.2078]
[1724997984154,1.13312,2514.2,2514.1,3.2078]
[1724997984455,0.3569,2514.2,2514.1,3.2078]
[1724997986358,0.3785,2514.7,2514.2,0.39772]
[1724997986359,0.39768,2514.5,2514.2,0.39772]
[1724997986666,0.7564,2514.6,2514.2,3.83771]
[1724997986852,1.15406,2514.6,2514.2,3.83771]
[1724997987359,0.7564,2514.6,2514.3,0.3977]
[1724997987555,1.15405,2514.6,2514.3,0.3977]
[1724997987756,1.15405,2514.6,2514.2,4.56661]
[1724997988347,1.15405,2514.6,2514.3,0.3977]
[1724997988555,0.7564,2514.6,2514.5,3.44]
[1724997988752,0.3669,2514.6,2514.5,6.6478]
[1724997989954,0.76455,2514.6,2514.5,6.6478]
[1724997993761,0.3669,2514.6,2514.5,6.6478]
[1724997994358,0.76455,2514.6,2514.5,6.6478]
[1724997995066,0.3669,2514.6,2514.5,6.6478]
[1724997997268,0.3669,2514.6,2514.5,7.04547]
[1724997997468,1.12581,2514.9,2514.6,0.39765]
[1724997997668,0.3722,2514.9,2514.8,7.04542]
[1724997998065,1.11786,2515.2,2514.9,0.3976]
[1724997998066,0.7203,2515.2,2514.9,0.3976]
[1724997998256,0.3722,2515.3,2515.1,6.6478]
[1724997998462,1.12084,2515.3,2515.1,6.6478]
[1724997999155,0.7233,2515.3,2515.1,6.6478]
[1724997999360,0.7233,2515.3,2515.1,7.04537]
[1724997999565,0.3692,2515.5,2515.1,6.6478]
[1724997999767,0.3726,2515.6,2515.4,6.6478]
[1724998002562,0.3726,2515.6,2515.5,0.39751]
[1724998002758,0.3726,2515.6,2515.4,10.623]
[1724998002959,0.3726,2515.6,2515.5,0.39751]
[1724998003457,0.3726,2515.6,2515.5,4.37271]
[1724998003664,0.3726,2515.6,2515.4,6.6478]
[1724998004063,0.7701,2515.6,2515.4,6.6478]
[1724998004270,0.3726,2515.6,2515.4,6.6478]
[1724998005373,0.3726,2515.6,2515.5,0.39751]
[1724998005973,0.3726,2515.6,2515.4,7.04532]
[1724998006379,7.183,2515.5,2515.2,0.00596291]
[1724998006664,0.3726,2515.6,2515.2,0.00596291]
[1724998006665,0.74973,2515.4,2515.2,0.00596291]
[1724998007376,0.39754,2515.3,2515.2,0.00596291]
[1724998008575,4.37354,2515.3,2515.2,0.00596291]
[1724998009679,0.39754,2515.3,2515.2,0.00596291]
[1724998010074,0.3522,2515.4,2515.2,0.00596291]
[1724998010075,0.74973,2515.4,2515.2,0.00596291]
[1724998010569,0.3522,2515.4,2515.2,0.00596291]
[1724998010968,0.3726,2515.6,2515.2,3.44596291]
[1724998012066,0.3726,2515.6,2515.2,0.00596291]
[1724998012375,0.39754,2515.3,2515.2,0.00596291]
[1724998012774,4.37354,2515.3,2515.2,0.00596291]
[1724998013775,4.37354,2515.3,2514.8,3.2078]
[1724998013776,0.39761,2514.9,2514.8,3.2078]
[1724998014279,4.37361,2514.9,2514.8,3.2078]
[1724998014468,0.3698,2515.2,2514.8,3.2078]
[1724998014469,0.39758,2515.1,2514.8,3.2078]
[1724998014775,0.37572174,2515.2,2514.8,3.2078]
[1724998014974,0.39758,2515.1,2514.8,3.2078]
[1724998015380,0.75899,2515.0,2514.8,3.2078]
[1724998016481,0.99378,2515.6,2514.8,3.2078]
[1724998016482,3.11765436,2516.8,2515.3,3.2078]
[1724998016674,0.3654,2516.6,2516.2,3.2078]
[1724998016875,0.3654,2516.6,2516.5,3.2078]
[1724998017069,0.3654,2516.6,2516.4,3.44]
[1724998019380,0.3654,2516.6,2516.3,3.2078]
[1724998019381,3.9736,2516.5,2516.3,3.2078]
[1724998019581,0.3661,2516.5,2516.3,3.2078]
[1724998020989,0.3661,2516.5,2516.2,0.00596291]
[1724998020990,8.10639032,2516.4,2516.2,0.00596291]
[1724998021175,8.10639032,2516.4,2515.7,3.44]
[1724998021483,0.39739,2516.3,2515.7,3.44]
[1724998021683,3.9744,2516.3,2515.7,3.44]
[1724998021886,0.39746,2515.9,2515.6,3.2078]
[1724998022079,0.364,2515.8,2515.6,3.2078]
[1724998022579,0.00596291,2516.0,2515.6,3.2078]
[1724998022777,0.00596291,2516.0,2515.9,3.2078]
[1724998023279,3.98036291,2516.0,2515.9,3.2078]
[1724998023479,0.00596291,2516.0,2515.9,3.2078]
[1724998024383,0.36066291,2516.0,2515.9,3.2078]
[1724998027584,4.73249291,2516.0,2515.9,3.2078]
[1724998028083,10.33506291,2516.0,2515.5,0.00596291]
[1724998028285,3.9752,2515.9,2515.5,0.00596291]
[1724998028478,0.39749,2515.6,2515.5,0.00596291]
[1724998028674,0.39748,2515.7,2515.5,0.00596291]
[1724998028885,0.39747,2515.8,2515.5,0.00596291]
[1724998029189,0.36066291,2516.0,2515.5,0.00596291]
[1724998029190,4.53317823,2515.9,2515.5,0.00596291]
[1724998029490,0.36066291,2516.0,2515.5,0.00596291]
[1724998029679,0.39745,2515.9,2515.5,0.00596291]
[1724998029881,0.75810291,2516.0,2515.5,0.00596291]
[1724998030181,0.39746,2515.8,2515.5,0.00596291]
[1724998030487,0.39746,2515.9,2515.5,0.00596291]
[1724998031284,0.3885,2515.8,2515.5,0.00596291]
[1724998031983,0.78596,2515.8,2515.5,0.00596291]
[1724998032177,0.39749,2515.6,2515.5,0.00596291]
[1724998032583,15.20422403,2515.6,2515.5,0.00596291]
[1724998034787,0.39751,2515.5,2515.4,0.41485472]
[1724998034994,5.36649,2515.5,2515.4,0.41485472]
[1724998035185,0.99387,2515.3,2514.7,4.58]
[1724998035391,3.2078,2515.2,2514.6,3.2078]
[1724998035586,0.39761,2514.9,2514.6,3.2078]
[1724998036283,12.01251506,2515.2,2514.6,3.2078]
[1724998036488,12.01251506,2515.2,2514.5,0.00596291]
[1724998036489,0.39765,2514.6,2514.5,0.00596291]
[1724998036894,10.37445,2514.6,2514.5,0.00596291]
[1724998037986,4.73505,2514.6,2514.5,0.32406291]
[1724998038294,10.73505,2514.6,2514.5,0.32406291]
[1724998038692,4.73505,2514.6,2514.5,0.32406291]
[1724998038886,0.75825,2514.6,2514.5,0.32406291]
[1724998039287,4.73505,2514.6,2514.5,0.32406291]
[1724998039688,0.3606,2514.6,2514.5,0.32406291]
[1724998040290,0.75825,2514.6,2514.5,0.32406291]
[1724998040604,0.3606,2514.6,2514.5,0.32406291]
[1724998040790,0.75825,2514.6,2514.5,0.32406291]
[1724998041491,0.3975,2515.6,2515.0,0.39758]
[1724998041693,0.3975,2515.6,2515.1,3.2078]
[1724998041694,0.3714,2515.6,2515.1,3.2078]
[1724998041892,0.39756,2515.2,2515.1,3.2078]
[1724998042288,4.37356,2515.2,2515.1,3.2078]
[1724998042490,4.35405555,2515.5,2515.1,3.2078]
[1724998042801,0.39753,2515.4,2515.1,3.2078]
[1724998043386,0.7689,2515.6,2515.1,3.2078]
[1724998043592,0.3714,2515.6,2515.1,3.60537]
[1724998043989,0.3714,2515.6,2515.1,3.2078]
[1724998045794,0.3714,2515.6,2514.8,5.18104153]
[1724998045795,0.3714,2515.6,2515.4,3.2078]
[1724998045991,0.3714,2515.6,2515.1,3.2078]
[1724998046899,0.7689,2515.6,2515.1,3.2078]
[1724998047102,0.00596291,2516.0,2515.5,4.58]
[1724998047399,0.00596291,2516.0,2515.9,4.97745]
[1724998047795,0.00596291,2516.0,2515.9,8.95185]
[1724998048195,0.376,2516.7,2516.2,0.39739]
[1724998048399,0.376,2516.7,2516.3,3.60518]
[1724998048802,8.1457928,2517.1,2516.3,3.60518]
[1724998048999,0.39728,2517.0,2516.3,3.60518]
[1724998049197,3.64322633,2516.9,2516.3,3.61114291]
[1724998049599,3.64322633,2516.9,2516.3,3.21376291]
[1724998050000,3.64322633,2516.9,2516.3,3.61113291]
[1724998050399,3.2078,2516.8,2516.3,3.21376291]
[1724998050599,8.14686068,2516.8,2516.3,0.00596291]
[1724998050797,3.2078,2516.5,2516.3,0.00596291]
[1724998050997,0.75777,2516.4,2516.3,0.00596291]
[1724998051197,0.3604,2516.4,2516.3,0.00596291]
[1724998051406,4.73217,2516.4,2516.3,0.00596291]
[1724998051697,10.73217,2516.4,2516.3,0.00596291]
[1724998051897,5.09217,2516.4,2516.3,0.00596291]
[1724998052102,11.09217,2516.4,2516.3,0.00596291]
[1724998052304,14.29997,2516.4,2516.3,0.00596291]
[1724998052503,11.09217,2516.4,2516.3,0.00596291]
[1724998052701,4.6948,2516.4,2516.3,0.00596291]
[1724998053709,5.09217,2516.4,2516.3,0.00596291]
[1724998054005,4.6948,2516.4,2516.3,0.00596291]
[1724998055205,5.09217,2516.4,2516.3,0.00596291]
[1724998056106,4.6948,2516.4,2516.3,0.00596291]
[1724998056311,4.6948,2516.4,2516.3,0.07756291]
[1724998056617,4.6948,2516.4,2516.3,0.22096291]
[1724998056912,4.6948,2516.4,2516.3,0.53886291]
[1724998057314,0.7204,2516.4,2516.3,0.53886291]
[1724998057816,1.11777,2516.4,2516.3,0.53886291]
[1724998058011,5.09217,2516.4,2516.3,0.53886291]
[1724998058604,4.6948,2516.4,2516.3,0.53886291]
[1724998059111,5.09217,2516.4,2516.3,0.53886291]
[1724998059316,4.6948,2516.4,2516.3,0.53886291]
[1724998060909,0.7204,2516.4,2516.3,0.53886291]
[1724998061210,4.5591,2516.8,2516.3,0.53886291]
[1724998061211,0.39733,2516.7,2516.3,0.53886291]
[1724998061410,0.78503,2516.7,2516.3,0.53886291]
[1724998061816,0.3877,2516.7,2516.3,0.93624291]
[1724998062114,0.00596291,2516.9,2516.5,4.97734]
[1724998062312,0.00596291,2516.9,2516.8,4.97731]
[1724998062508,0.3877,2517.6,2516.8,8.5536]
[1724998062707,7.759,2518.2,2516.8,8.5536]
[1724998062708,0.39713,2518.0,2517.4,7.7878]
[1724998062905,0.39714,2517.9,2517.4,7.7878]
[1724998063108,4.60279017,2517.9,2517.4,3.2078]
[1724998063320,4.20565017,2517.9,2517.4,3.2078]
[1724998063513,0.39712,2518.0,2517.4,3.2078]
[1724998064210,0.39712,2518.0,2517.5,3.43]
[1724998065217,0.39714,2517.9,2517.5,3.43]
[1724998065513,0.39712,2518.0,2517.5,3.43]
[1724998066014,0.3877,2518.1,2517.4,3.2078]
[1724998066215,0.39715,2517.8,2517.4,3.2078]
[1724998067112,0.39718,2517.7,2517.4,3.2078]
[1724998067305,0.3877,2518.1,2517.4,3.2078]
[1724998067306,0.39718,2517.6,2517.4,3.2078]
[1724998067706,0.39717,2517.7,2517.4,3.2078]
[1724998067916,0.39718,2517.6,2517.4,3.2078]
[1724998069015,8.72072421,2518.0,2517.4,3.2078]
[1724998069016,0.39717,2517.7,2517.4,3.2078]
[1724998069422,0.39718,2517.6,2517.4,3.2078]
[1724998070111,0.39718,2517.6,2517.5,0.0715]
[1724998073322,4.36918,2517.6,2517.5,0.0715]
[1724998076018,0.39717,2517.7,2517.5,0.0715]
[1724998076219,0.39718,2517.6,2517.5,0.0715]
[1724998076811,4.58529661,2517.9,2517.5,0.0715]
[1724998077121,0.39717,2517.7,2517.5,0.0715]
[1724998078221,0.39718,2517.6,2517.5,0.0715]
[1724998079111,0.39717,2517.7,2517.5,0.0715]
[1724998079319,0.39718,2517.6,2517.5,0.0715]
[1724998080622,4.36918,2517.6,2517.5,0.0715]
[1724998081217,4.36918,2517.6,2517.5,0.2149]
[1724998082525,3.972,2517.6,2517.5,0.2149]
[1724998082718,0.75697,2517.7,2517.5,0.2149]
[1724998082914,0.39718,2517.6,2517.5,0.2149]
[1724998083327,4.36918,2517.6,2517.5,0.2149]
[1724998083626,0.75008,2517.6,2517.5,0.2149]
[1724998083928,0.39718,2517.6,2517.5,0.2149]
[1724998085627,4.36918,2517.6,2517.5,0.5326]
[1724998086128,0.39718,2517.6,2517.5,0.5326]
[1724998088725,0.75697,2517.7,2517.5,0.5326]
[1724998089135,0.39718,2517.6,2517.5,0.5326]
[1724998089739,0.75697,2517.7,2517.5,0.5326]
[1724998090020,0.39718,2517.6,2517.5,0.5326]
[1724998090827,4.36918,2517.6,2517.5,0.5326]
[1724998095135,4.73498,2517.6,2517.5,0.5326]
[1724998101144,9.97339568,2517.6,2517.5,0.5326]
[1724998103445,0.76298,2517.6,2517.5,0.5326]
[1724998105436,4.73498,2517.6,2517.5,0.5326]
[1724998105640,4.73498,2517.6,2517.0,3.2078]
[1724998105641,0.39726,2517.2,2517.0,3.2078]
[1724998106345,0.39726,2517.1,2517.0,3.2078]
[1724998107343,0.39726,2517.1,2517.0,3.2281]
[1724998109751,0.39726,2517.1,2517.0,0.0203]
[1724998109958,9.9728,2517.1,2516.5,1.03225728]
[1724998110153,0.39735,2516.5,2516.4,3.2078]
[1724998110456,0.39737,2516.4,2516.3,0.00596291]
[1724998110643,0.39737,2516.4,2515.9,3.2078]
[1724998110644,0.39743,2516.0,2515.9,3.2078]
[1724998111548,0.39742,2516.1,2515.9,3.2078]
[1724998112643,0.00596291,2516.3,2516.1,0.39742]
[1724998112846,0.00596291,2516.3,2516.2,7.0352]
[1724998113050,0.00596291,2516.3,2516.2,11.0096]
[1724998113353,0.00596291,2516.3,2516.2,17.0096]
[1724998115353,0.00596291,2516.3,2516.2,16.6122]
[1724998115554,0.00596291,2516.3,2516.2,17.0096]
[1724998116952,0.00596291,2516.3,2516.2,11.0096]
[1724998117144,0.00596291,2516.3,2516.2,17.0096]
[1724998118955,7.81126342,2516.9,2516.6,0.39733]
[1724998119150,7.81126342,2516.9,2516.7,0.3655]
[1724998121255,0.39732,2516.8,2516.6,3.2078]
[1724998123055,0.39732,2516.7,2516.6,3.2078]
[1724998124162,0.76372,2516.7,2516.6,3.2078]
[1724998124951,0.39731,2516.8,2516.6,3.2078]
[1724998125759,0.39732,2516.7,2516.6,3.2078]
[1724998125960,4.01686342,2516.9,2516.6,3.2078]
[1724998126362,0.39731,2516.8,2516.6,3.2078]
[1724998126561,0.39732,2516.7,2516.6,3.2078]
[1724998126761,0.39731,2516.8,2516.6,3.2078]
[1724998127661,0.39732,2516.7,2516.6,3.2078]
[1724998128854,4.37092,2516.7,2516.6,3.2078]
[1724998129058,0.39738,2516.3,2516.0,40.8]
[1724998129257,3.9736,2516.7,2515.9,6.6378]
[1724998129258,0.39741,2516.2,2515.9,6.6378]
[1724998129464,0.74851,2516.2,2515.9,6.6378]
[1724998130264,0.39743,2516.0,2515.9,3.2078]
[1724998130760,0.3511,2516.2,2515.9,3.2078]
[1724998130961,0.74851,2516.2,2515.9,6.6378]
[1724998132463,0.3511,2516.2,2515.9,6.6378]
[1724998133063,0.7485,2516.2,2515.9,6.6378]
[1724998134969,0.39742,2516.1,2515.9,6.6378]
[1724998135358,0.39743,2516.0,2515.9,3.2078]
[1724998135668,0.75333,2516.0,2515.9,3.2078]
[1724998136668,0.3559,2516.0,2515.9,3.2078]
[1724998137468,0.3511,2516.2,2515.9,3.2078]
[1724998137655,0.3511,2516.2,2515.9,7.03524]
[1724998137857,0.3665,2516.3,2515.9,11.00964]
[1724998138062,0.3665,2516.3,2515.9,7.03524]
[1724998138270,0.76389,2516.3,2515.9,7.03524]
[1724998138859,0.3665,2516.3,2515.9,7.03524]
[1724998139066,0.76389,2516.3,2515.9,7.03524]
[1724998140470,0.76389,2516.3,2516.0,3.2078]
[1724998140662,0.3665,2516.3,2516.0,3.2078]
[1724998140867,0.76389,2516.3,2516.0,3.2078]
[1724998141064,0.3665,2516.3,2516.0,3.60523]
[1724998144774,0.3665,2516.3,2516.1,0.3974]
[1724998145272,0.3665,2516.3,2516.0,3.60522]
[1724998145476,0.76389,2516.3,2516.0,3.60522]
[1724998145870,0.3974,2516.2,2516.0,3.2078]
[1724998146268,0.76812,2516.1,2516.0,3.2078]
[1724998147666,0.3707,2516.1,2516.0,3.2078]
[1724998147864,0.76389,2516.3,2516.0,7.1822]
[1724998148070,0.76389,2516.3,2516.0,3.2078]
[1724998148672,0.76389,2516.3,2516.0,3.60523]
[1724998148869,0.3665,2516.3,2516.0,3.60523]
[1724998149069,0.3665,2516.3,2516.1,0.39741]
[1724998150373,0.3665,2516.3,2516.2,0.3974]
[1724998150574,0.3665,2516.3,2516.1,0.39741]
[1724998151168,0.3665,2516.3,2516.0,3.5746]
[1724998151371,0.3707,2516.4,2516.0,3.5746]
[1724998151570,0.3707,2516.4,2516.2,0.39739]
[1724998152078,0.3707,2516.4,2516.0,3.5746]
[1724998152272,0.3619,2516.6,2516.1,3.43]
[1724998152472,0.3619,2516.6,2516.3,3.60518]
[1724998152678,0.75924,2516.6,2516.3,3.60518]
[1724998152879,0.3619,2516.6,2516.3,3.60518]
[1724998153068,0.99339,2516.5,2516.0,0.3668]
[1724998153375,0.99339,2516.5,2515.9,3.2078]
[1724998153376,0.39743,2516.0,2515.9,3.2078]
[1724998155972,0.39742,2516.1,2515.9,3.2078]
[1724998156374,0.78023,2516.0,2515.9,3.2078]
[1724998156977,0.39741,2516.2,2515.9,3.2078]
[1724998157295,0.3828,2516.2,2515.9,3.2078]
[1724998157483,0.39743,2516.0,2515.9,3.2078]
[1724998158978,0.3828,2516.2,2515.9,3.2078]
[1724998159278,0.7802,2516.2,2515.9,3.2078]
[1724998159481,0.39742,2516.1,2515.9,3.2078]
[1724998159983,0.39743,2516.0,2515.9,3.2078]
[1724998160881,0.3828,2516.2,2515.9,3.2078]
[1724998161878,0.3582,2516.5,2516.2,0.39739]
[1724998162073,4.5287,2516.7,2516.3,0.39738]
[1724998162684,4.5287,2516.7,2516.5,3.60515]
[1724998162886,4.174,2516.7,2516.5,3.2078]
[1724998163184,4.57133,2516.7,2516.5,3.2078]
[1724998163392,4.174,2516.7,2516.4,3.2078]
[1724998163686,4.174,2516.7,2516.4,3.60515]
[1724998164092,4.174,2516.7,2516.4,3.2078]
[1724998164985,4.174,2516.7,2516.5,0.39734]
[1724998165185,4.174,2516.7,2516.6,0.39734]
[1724998165382,4.174,2516.7,2516.6,4.37094]
[1724998165583,4.174,2516.7,2516.6,3.9736]
[1724998166080,4.174,2516.7,2516.5,3.43]
[1724998166281,4.174,2516.7,2516.5,7.4036]
[1724998166477,1.15368,2517.0,2516.5,7.80095]
[1724998166777,1.15368,2517.0,2516.7,3.2078]
[1724998167580,0.39731,2516.8,2516.7,3.2078]
[1724998168782,4.37091,2516.8,2516.7,3.2078]
[1724998168988,4.37091,2516.8,2515.8,2.07976136]
[1724998168989,0.39741,2516.2,2515.9,1.03225728]
[1724998169183,0.39741,2516.2,2515.8,4.76762102]
[1724998169184,0.3853,2516.1,2515.8,4.24005728]
[1724998169380,0.39744,2516.0,2515.8,3.2078]
[1724998169587,0.39744,2516.0,2515.7,0.00596291]
[1724998169900,0.39746,2515.8,2515.7,0.00596291]
[1724998170387,0.3975,2515.6,2515.4,3.2078]
[1724998170583,3.43,2515.8,2515.4,3.2078]
[1724998170785,0.7448,2515.5,2515.4,3.2078]
[1724998172793,0.7448,2515.5,2515.2,0.00596291]
[1724998172988,0.39754,2515.4,2515.2,0.00596291]
[1724998174195,0.7448,2515.5,2515.2,0.00596291]
[1724998174695,0.3715,2515.5,2515.2,0.00596291]
[1724998175484,0.3715,2515.5,2515.2,3.98116291]
[1724998176983,0.40344291,2515.7,2515.3,0.39753]
[1724998176984,0.00596291,2515.7,2515.3,0.39753]
[1724998177184,0.00596291,2515.7,2515.2,0.00596291]
[1724998177396,0.39753,2515.4,2515.2,0.00596291]
[1724998177892,0.00596291,2515.7,2515.2,0.00596291]
[1724998177893,0.39752,2515.5,2515.2,0.00596291]
[1724998178295,0.00596291,2515.7,2515.2,0.00596291]
[1724998178497,0.39754,2515.4,2515.2,0.00596291]
[1724998178691,0.39752,2515.5,2515.2,0.00596291]
[1724998179001,0.00596291,2515.7,2515.2,0.00596291]
[1724998179002,0.39753,2515.4,2515.2,0.00596291]
[1724998179599,0.7652,2515.3,2515.2,0.00596291]
[1724998181689,1.16274,2515.3,2515.2,0.00596291]
[1724998185596,5.13874,2515.3,2515.2,0.00596291]
[1724998190616,0.00596291,2515.7,2515.2,3.21376291]
[1724998190815,0.78842,2515.5,2515.2,3.21376291]
[1724998191016,0.3909,2515.5,2515.2,0.00596291]
[1724998191208,0.39754,2515.3,2515.2,0.00596291]
[1724998191713,0.77984,2515.3,2515.2,0.00596291]
[1724998194604,0.3823,2515.3,2515.2,0.00596291]
[1724998195008,0.3909,2515.5,2515.2,0.40351291]
[1724998195205,0.00596291,2515.7,2515.3,0.39754]
[1724998195415,0.00596291,2515.7,2515.5,3.2078]
[1724998200726,0.00596291,2515.7,2515.6,0.39749]
[1724998201109,0.00596291,2515.7,2515.6,4.37269]
[1724998201313,0.00596291,2515.7,2515.6,13.80269]
[1724998203523,0.00596291,2515.7,2515.6,7.80269]
[1724998205318,4.174,2516.4,2515.6,13.4052]
[1724998205612,1.15796,2516.5,2516.0,3.60522]
[1724998206013,5.77048583,2516.5,2516.0,3.60522]
[1724998208019,5.77048583,2516.5,2516.0,3.2078]
[1724998208215,5.77048583,2516.5,2516.0,3.60522]
[1724998208413,5.77048583,2516.5,2516.1,0.39742]
[1724998208609,7.3818,2516.7,2516.3,0.39738]
[1724998208823,0.7681,2516.8,2516.4,0.39737]
[1724998209022,0.7681,2516.8,2516.5,0.39734]
[1724998209224,0.7681,2516.8,2516.7,3.2078]
[1724998209411,4.174,2517.0,2516.8,0.3973]
[1724998209833,0.77065,2517.2,2516.8,0.3973]
[1724998210019,0.3734,2517.2,2516.8,0.3973]
[1724998210821,0.3734,2517.2,2516.7,3.2078]
[1724998211018,0.3734,2517.2,2516.5,3.50906291]
[1724998211019,0.3734,2517.2,2517.0,3.2078]
[1724998211218,0.3734,2517.2,2517.0,3.60507]
[1724998211619,0.3734,2517.2,2517.0,3.2078]
[1724998212122,0.3734,2517.2,2517.0,3.60507]
[1724998214319,0.3947,2517.3,2517.1,0.39726]
[1724998214616,0.4121,2517.5,2517.0,3.2078]
[1724998214923,0.4121,2517.5,2517.1,0.383]
[1724998215218,0.4121,2517.5,2517.1,0.78025]
[1724998215414,0.4121,2517.5,2517.1,0.383]
[1724998215815,0.4121,2517.5,2517.2,0.39724]
[1724998217126,0.4121,2517.5,2517.3,3.2078]
[1724998217723,0.8093,2517.5,2517.3,3.2078]
[1724998219327,0.4121,2517.5,2517.3,3.2078]
[1724998220123,0.39719,2517.5,2517.3,3.2078]
[1724998220319,0.79779,2517.5,2517.3,3.2078]
[1724998220823,4.36921,2517.4,2517.3,3.2078]
[1724998221025,4.36921,2517.4,2516.7,3.43]
[1724998221026,0.39724,2517.3,2516.8,3.60509]
[1724998221219,0.3954,2517.2,2516.8,3.2078]
[1724998221419,0.39726,2517.1,2516.8,3.2078]
[1724998221619,0.4006,2517.0,2516.8,3.2078]
[1724998222128,0.39719,2517.5,2516.9,3.9728]
[1724998222321,0.4079,2517.4,2517.1,3.2078]
[1724998222521,0.80511,2517.4,2517.1,3.2078]
[1724998224324,0.39723,2517.3,2517.1,3.2078]
[1724998225031,0.80512,2517.4,2517.1,3.2078]
[1724998225232,0.39723,2517.3,2517.1,3.2078]
[1724998225425,0.39724,2517.3,2517.1,3.2078]
[1724998226035,0.395,2517.2,2517.1,3.2078]
[1724998228433,0.80512,2517.4,2517.1,3.2078]
[1724998228731,0.4079,2517.4,2517.2,0.39724]
[1724998229131,0.4079,2517.4,2517.1,3.60505]
[1724998229333,0.4079,2517.4,2517.2,0.39724]
[1724998230232,0.3768,2517.5,2517.2,0.39723]
[1724998230429,0.3768,2517.5,2517.3,0.79573]
[1724998230935,0.39718,2517.6,2517.3,0.3985]
[1724998231238,0.3917,2517.7,2517.3,0.3985]
[1724998231239,1.18577,2517.7,2517.3,0.3985]
[1724998231640,1.18577,2517.7,2517.3,0.79572]
[1724998231830,1.18577,2517.7,2517.4,3.2078]
[1724998232535,0.7886,2517.7,2517.4,3.2078]
[1724998233635,0.7886,2517.7,2517.4,3.605]
[1724998233834,0.7886,2517.7,2517.4,6.6378]
[1724998234133,0.7886,2517.7,2517.5,0.39719]
[1724998234532,0.7886,2517.7,2517.4,3.2078]
[1724998234727,1.18577,2517.7,2517.4,3.2078]
[1724998234934,0.7886,2517.7,2517.4,3.2078]
[1724998236038,0.7886,2517.7,2517.4,3.60501]
[1724998236236,0.7886,2517.7,2517.4,3.2078]
[1724998236936,1.18576,2517.7,2517.4,3.2078]
[1724998237232,0.7886,2517.7,2517.1,3.2078]
[1724998237437,0.39719,2517.6,2517.1,3.60504]
[1724998237639,0.39719,2517.6,2517.2,0.39724]
[1724998237837,0.3972,2517.5,2517.1,3.2078]
[1724998238240,0.7886,2517.7,2517.1,3.2078]
[1724998238535,0.39722,2517.4,2517.1,3.2078]
[1724998238736,0.8083,2517.3,2517.1,3.2078]